Cogmind - Beta 13 @@@ ROGUE MODE // 2024.04.15 @ 15:03:49 Player: Korywon Result: Destroyed by as-80149 with Assembled Heavy Rifle Performance ------------- Evolutions (0) 0 Regions Visited (2) 400 Robots Destroyed (19) 95 Value Destroyed (340) 340 Prototype IDs (0) 0 Alien Tech Used (0) 0 Bonus (0) 0 TOTAL SCORE: 835 Bonus ------- None Cogmind --------- Core Integrity 0/250 Matter 220/300 Energy 65/125 System Corruption 3% Temperature Cool (10) Movement Rolling (95) Ox1 Location -10/Mines Parts ------- > --- POWER (1) -------- Light Ion Engine > --- PROPULSION (2) --- Wheel Flight Unit > --- UTILITY (2) ------ Medium Storage Unit > --- WEAPON (2) ------- Small Laser > --- INVENTORY (10) --- Light Ion Engine Wheel Heat Sink Heat Sink Medium Storage Unit Light Assault Rifle Light Assault Rifle Peak State ------------ > --- POWER ------------ Light Ion Engine > --- PROPULSION ------- Aluminum Leg Aluminum Leg > --- UTILITY ---------- Heat Sink Seismic Detector > --- WEAPON ----------- Medium Laser Medium Laser > --- INVENTORY -------- Light Ion Engine Wheel Wheel Assault Rifle [Rating: 7] Favorites ----------- Power Ion Engine Engine Ion Engine Propulsion Aluminum Leg Leg Aluminum Leg Wheel Wheel Flight Unit Flight Unit Utility Heat Sink Device Heat Sink Storage Medium Storage Unit Weapon Medium Laser Energy Gun Medium Laser Ballistic Gun Assault Rifle Launcher Grenade Launcher Build | -11 -10 -10 ------- Run | Yrd Mat Min Slots Evolved . | . . . Power . | . . . Propulsion . | . . . Utility . | . . . Weapon . | . . . Parts Attached 18 | 7 2 9 Power 3 | 1 1 1 Engine 3 | 1 1 1 Core . | . . . Reactor . | . . . Propulsion 6 | 2 . 4 Treads . | . . . Leg 2 | 2 . . Wheel 3 | . . 3 Hover . | . . . Flight 1 | . . 1 Utility 4 | 2 1 1 Device 3 | 2 1 . Storage 1 | . . 1 Processor . | . . . Hackware . | . . . Protection . | . . . Artifact . | . . . Weapon 5 | 2 . 3 Energy Gun 3 | 2 . 1 Energy Cannon . | . . . Ballistic Gun 1 | . . 1 Ballistic Cannon . | . . . Launcher 1 | . . 1 Special Weapon . | . . . Impact Weapon . | . . . Slashing Weapon . | . . . Piercing Weapon . | . . . Special Melee Weapon . | . . . Unidentified Prototypes . | . . . Parts Lost 10 | . 2 8 Power 2 | . 1 1 Propulsion 3 | . 1 2 Utility 1 | . . 1 Weapon 4 | . . 4 Highest Loss Streak 4 | . 1 4 To Critical Strikes . | . . . Average Slot Usage (%) 85 | . 80 90 Engine 14 | . 14 14 Leg 11 | . 21 . Wheel 9 | . . 20 Device 17 | . 15 19 Storage 3 | . . 7 Energy Gun 20 | . 28 12 Ballistic Gun 6 | . . 13 Naked Turns . | . . . Heaviest Build 19 | 8 11 19 Greatest Support 20 | 20 20 20 Greatest Overweight (x) 1 | . 1 1 Average Overweight (x) . | . . . Largest Inventory Capacity 10 | 5 5 10 Average Capacity 6 | 5 5 7 Most Carried 9 | 5 5 9 Average Carried 4 | 3 4 4 Final Capacity 10 | 5 5 10 Final Carried 7 | 5 4 7 Class Distribution -------------------- 100% | Mutant Dominant Class ---------------- Mutant | -10/Materials Mutant | -10/Mines Resources | -11 -10 -10 ----------- Run | Yrd Mat Min Matter Collected 387 | 250 30 107 Remotely . | . . . Salvage Created 461 | 69 208 184 Parts 39 | 7 15 17 Haulers Intercepted . | . . . Recyclers Shooed 1 | . 1 . Parts Field Recycled . | . . . Retrieved Matter . | . . . Parts Self-Destructed . | . . . Prevented . | . . . Kills | -11 -10 -10 ------- Run | Yrd Mat Min Combat Hostiles Destroyed 18 | 1 8 9 Guns 15 | 1 8 6 AOE 3 | . . 3 Classes Destroyed 4 | 2 1 1 Tunneler 2 | 1 . 1 Swarmer 12 | . 6 6 Grunt 5 | 1 2 2 Assembled 1 | . . 1 Best Kill Streak 7 | 2 7 4 Combat Bots Only 7 | 1 7 4 Max Kills in Single Turn 2 | 1 2 2 Gunslinging 1 | . 1 . Exploded 1 | . . 1 Melee . | . . . Uniques/NPCs Destroyed . | . . . Combat | -11 -10 -10 -------- Run | Yrd Mat Min Hostile Shots Fired 133 | 8 60 65 Missed 33 | 3 12 18 Damage Taken 1022 | 57 409 556 Core 255 | 12 146 97 Absorbed by Shields . | . . . Core Remaining (%) 95 | 95 . . Volleys Fired 61 | 8 24 29 Largest 2 | 2 2 2 Hottest 100 | 100 100 80 Shots Fired 116 | 16 48 52 Gun 112 | 16 48 48 Cannon . | . . . Launcher 4 | . . 4 Special . | . . . Kinetic 27 | . . 27 Thermal 85 | 16 48 21 Explosive 4 | . . 4 Electromagnetic . | . . . Robot Hit Streak 8 | 5 8 4 Robot Miss Streak 8 | 3 3 8 Penetration Max . | . . . Secondary Targets 3 | . 2 1 Max Gunslinging Chain 1 | . 1 1 Shots Hit Robots 55 | 9 29 17 Core Hits 30 | 3 12 15 Critical Kills . | . . . Critical Parts Destroyed . | . . . Critical Strikes 1 | . 1 . Burn 1 | . 1 . Melee Attacks . | . . . Impact . | . . . Slashing . | . . . Piercing . | . . . Sneak Attacks . | . . . Combat Hostiles . | . . . Follow-up Attacks . | . . . Damage Inflicted 826 | 110 367 349 Guns 665 | 110 367 188 Cannons . | . . . Explosions 161 | . . 161 Melee . | . . . Ramming . | . . . Kinetic 87 | . . 87 Thermal 578 | 110 367 101 Explosive 161 | . . 161 Electromagnetic . | . . . Impact . | . . . Slashing . | . . . Piercing . | . . . Highest Corruption 3 | . 3 3 Average Corruption 2 | . 2 3 Corruption Purged . | . . . Corruption Blocked . | . . . Effects 3 | . . 3 Message Errors 1 | . . 1 Matter Fused 1 | . . 1 Misfires 1 | . . 1 Overload Shots . | . . . Overflow Damage . | . . . Projectiles . | . . . Explosions . | . . . Melee . | . . . Knockbacks . | . . . Impact . | . . . Kinetic . | . . . Secondary . | . . . Self-Inflicted Damage . | . . . Shots . | . . . Rammed . | . . . Targets Rammed . | . . . Kicked . | . . . Crushed . | . . . Highest Temperature 252 | 252 99 20 Average Temperature 59 | 120 32 7 Received Heat Transfer 142 | 30 33 79 Siege Activations . | . . . Robots Corrupted . | . . . Combat Hostiles . | . . . Parts Fried . | . . . Impact Corruptions . | . . . Robots Melted . | . . . Combat Hostiles . | . . . Parts Melted . | . . . Heat Transferred 1729 | 333 1147 249 Parts Sabotaged . | . . . Parts Stolen . | . . . Parts Stripped . | . . . Power Chain Reactions . | . . . Alert | -11 -10 -10 ------- Run | Yrd Mat Min Peak Influence 270 | 25 208 270 Initial 81 | . 16 81 Average 123 | 7 104 197 Maximum Alert Level 1 | . 1 1 Low Security (%) 75 | 100 75 64 Level 1 24 | . 24 35 Level 2 . | . . . Level 3 . | . . . Level 4 . | . . . Level 5 . | . . . High Security . | . . . Max Security . | . . . Squads Dispatched 1 | . 1 . Investigation . | . . . Extermination . | . . . Reinforcement 1 | . 1 . Assault . | . . . Garrison . | . . . Intercept . | . . . Searches Triggered . | . . . Construction Impeded . | . . . Haulers Reinforced . | . . . Active Scanning Responses . | . . . Cargo Convoy Interrupts . | . . . Stealth | -11 -10 -10 --------- Run | Yrd Mat Min Distress Signals 1 | . 1 . Communications Jammed . | . . . Distress Signals . | . . . Times Spotted 31 | 1 12 18 Peak Tracking Total 12 | 1 6 12 Tactical Retreats 2 | . 1 1 Traps | -11 -10 -10 ------- Run | Yrd Mat Min Traps Triggered 2 | . 2 . Indirectly . | . . . Trap Hack Attempts . | . . . Triggered . | . . . Disarmed . | . . . Reprogrammed . | . . . Reused . | . . . Traps Extracted . | . . . Installed . | . . . Triggered . | . . . Machines | -11 -10 -10 ---------- Run | Yrd Mat Min Machines Disabled 1 | . . 1 Max in Single Turn 1 | . . 1 Machines Repaired . | . . . Machines Dismantled . | . . . Machines Sabotaged . | . . . Overloaded Fab Kills . | . . . Hacking | -11 -10 -10 --------- Run | Yrd Mat Min Machines Accessed 1 | . 1 . Terminals 1 | . 1 . Fabricators . | . . . Repair Stations . | . . . Recycling Units . | . . . Scanalyzers . | . . . Garrison Access . | . . . Total Hacks 2 | . 2 . Successful 1 | . 1 . Failed 1 | . 1 . Catastrophic . | . . . Database Lockouts . | . . . Manual 1 | . 1 . Terminals 2 | . 2 . Fabricators . | . . . Repair Stations . | . . . Recycling Units . | . . . Scanalyzers . | . . . Garrison Access . | . . . Terminal Hacks 1 | . 1 . Part Schematic 1 | . 1 . Fabricator Hacks . | . . . Repair Station Hacks . | . . . Recycling Unit Hacks . | . . . Scanalyzer . | . . . Garrison Access Hacks . | . . . Unauthorized Hacks . | . . . Terminals . | . . . Fabricators . | . . . Repair Stations . | . . . Recycling Units . | . . . Scanalyzers . | . . . Garrison Access . | . . . Data Cores Recovered . | . . . Used . | . . . Hacking Detections 1 | . 1 . Full Trace Events . | . . . Feedback Events . | . . . Feedback Blocked . | . . . Robot Schematics Acquired . | . . . Robots Built . | . . . Authchips . | . . . Time . | . . . Total Robot Build Rating . | . . . Part Schematics Acquired 1 | . 1 . Parts Built . | . . . Authchips . | . . . Time . | . . . Total Part Build Rating . | . . . Parts Repaired . | . . . Time . | . . . Parts Recycled . | . . . Recycled Matter . | . . . Retrieved Matter . | . . . Retrieved Components . | . . . Parts Scanalyzed . | . . . Part Schematics Acquired . | . . . Parts Damaged . | . . . Bothacking | -11 -10 -10 ------------ Run | Yrd Mat Min Used RIF Installer . | . . . Robots Hacked . | . . . Non-combat . | . . . Combat . | . . . Robot Hacks Applied . | . . . Relay Couplers Released . | . . . Fabnet Peak Effective % . | . . . Robots Rewired . | . . . Allies Hacked . | . . . Hacks Repelled . | . . . Allies | -11 -10 -10 -------- Run | Yrd Mat Min Total Allies . | . . . Largest Group . | . . . Highest-Rated Group . | . . . Highest-Rated Ally . | . . . Total Orders . | . . . Ally Attacks . | . . . Total Damage . | . . . Kills . | . . . Allies Corrupted . | . . . Allies Melted . | . . . Intel | -11 -10 -10 ------- Run | Yrd Mat Min Robot Analysis Total . | . . . Derelict Logs Recovered . | . . . Drone Launches . | . . . Drone Recoveries . | . . . Exploration | -11 -10 -10 ------------- Run | Yrd Mat Min Turns Passed 738 | 140 299 299 Spaces Moved 509 | 104 174 231 Core 39 | 39 . . Treads . | . . . Legs 239 | 65 174 . Wheels 231 | . . 231 Hover . | . . . Flight . | . . . Fastest Speed 50 | 50 120 80 Average Speed 100 | 93 126 84 Slowest Speed 190 | 120 190 95 Overloaded Moves . | . . . Propulsion Burnouts . | . . . Robots Hopped . | . . . Cave-ins Triggered . | . . . Exploration Rate (%) 23 | 7 23 40 Regions Visited 2 Branch Regions 1 Pre-discovered Areas 1 | . . 1 Known Exits Taken . | . . . Unknown Exits Taken 2 | 1 1 . Scrap Searched . | . . . Spaces Dug . | . . . Terrain Destroyed 27 | . . 27 Melee . | . . . Projectile . | . . . AOE 27 | . . 27 Terrain Rammed . | . . . Walls Destroyed . | . . . Machines Disabled . | . . . Actions | -11 -10 -10 --------- Run | Yrd Mat Min Total 623 | 131 206 286 Wait 4 | . 2 2 Move 507 | 103 173 231 Hop . | . . . Pick Up 27 | 12 3 12 Fast Attach . | . . . Attach 18 | 7 2 9 Detach 1 | . . 1 Swap . | . . . Drop 5 | 1 2 2 Fire 61 | 8 24 29 Melee . | . . . Ram . | . . . Kick . | . . . Crush . | . . . Escape Stasis . | . . . Rewire . | . . . Trap . | . . . Miscellaneous . | . . . Route ------- -11/Scrapyard -10/Materials -10/Mines History --------- Turn | Location | Event 2 | -11/Scrapyard | Met Revision 17 73 | -11/Scrapyard | Discovered new exit (range 8) 141 | -11/Scrapyard | Entered Materials 309 | -10/Materials | Build established: Mutant 316 | -10/Materials | Core integrity fell below 50% 339 | -10/Materials | Destroyed 7 combat bots 391 | -10/Materials | Discovered new exit (range 8) 440 | -10/Materials | Entered Mines 488 | -10/Mines | Learned location of Storage (-9) 513 | -10/Mines | Lost 4 parts (1n3w) 716 | -10/Mines | Assembled infested the area 731 | -10/Mines | Core integrity fell below 20% 739 | -10/Mines | Destroyed by as-80149 with Assembled Heavy Rifle Last Messages --------------- 00644_ Acquired Wheel. 00667_ System corrupted: Matter fused (-6). 00675_ S-10 Pest destroyed. 00678_ Switching to secondary target: S-10 Pest. 00684_ S-10 Pest destroyed. 00689_ Acquired 25 matter. 00691_ Acquired Lgt. Assault Rifle. 00693_ Acquired 14 matter. 00694_ Acquired Lgt. Assault Rifle. 00700_ R-06 Scavenger collects Lgt. Ion Engine. 00701_ Acquired Flight Unit. 00716_ ALERT: Infestation in the mines, dispatching Demolisher response squad. 00722_ K-01 Serf collects debris. 00725_ K-01 Serf destroyed. 00733_ Sensor Array destroyed. 00733_ Wheel destroyed. 00735_ as-61814 destroyed. 00737_ Ion Engine destroyed. 00737_ Assault Rifle destroyed. Map ----- +----------------------------------------------------+ | | | | | | | | | | | | | | | | | | | ?????????????????????????????????????????????????? | | ?????????????????????????????????????????????????? | | ?????????????????????????????????????????????????? | | ?????????????????????????????????????????????????? | | ??????????####????????????????############## #??? | | ?????????## #######?????????## #?? | | ?????????# #????????## #?? | | ?????????# #????##### a ##### ### #? | | ########?## *### #????# aa ##???? #????? | | ####| ! ## ###### a aa#??????#????????? | | ## # *% #???????????????? | | " " # #???????????????? | | ### """ #########*a ##???????????????? | | ###?## """ #?##### a #????????????????? | | #????# #### ##????????????????? | | ?????## ####?# a ###?????????????????? | | ??????# ##????# @ ##???????????????????? | | ###???# ###?????# #????????????????????? | | #???# #???????## #????????????????????? | | # ##### #????????###### #????????????????????? | | # #?????????????## ????????????????????? | | ####### #??????????????## ???????????????????? | | ??????# #???????????????## #??????????????????? | | ??????# #????????????????## #??????????????????? | | ??????# #?????????????????? ??????????????????? | | ????### ##????????????????? ?????????????????? | | ???## #????????????????? ?????????????????? | | ???# [#????????????????? ????????????????? | | ???# #?????????????????# ???????????????? | | ???# !#??#####???????????# ????????????????? | | ???# #?## ##??????????????????????????????? | | ???## #?# #??????????????????????????????? | | ?######! #### #??????????????????????????????? | | ?? ?# #### #?####?????????????????????????? | | ???# ## ### ## ##????????????????????????? | | ???# #????????????????????????? | | ???# #????????????????????????? | | ???# ######### ##????????????????????????? | | ???# ????????## ##????????????????????????? | | ???#??????????### ####### #????????????????? | | ????????????????## #????????????????? | +----------------------------------------------------+ Best States ------------- Heat Dissipation 35 Energy Generation 10 Energy Capacity 250 Matter Stores 300 Matter Capacity 300 Sight Range 16 Robot Scan Range 14 Terrain Scan Density 10 Evasion (%) 55 Item Schematics ----------------- Huge Storage Unit | -10/Materials | Hacked Robot Schematics ------------------ None Fabricated ------------ Nothing Alien Tech Used ----------------- None Achievements -------------- None Challenges ------------ None Game ------ Seed BackupImpactPendant Manual? 0 Play Time 00:10:07 Cumulative 61.6 hours Start 2024.04.15 @ 14:52:41 End 2024.04.15 @ 15:03:49 Sessions 1 Manual Loads 0 Difficulty Rogue Special Mode None Game No. 51 Rogue 51 Adventurer 0 Explorer 0 Win Type - Total 0 Types 0/0/0/0/0/0/0/0/0 Lore% 15 Gallery% 26 Achievement% 21 Wizard Run 0 Options --------- Layout 2 ASCII 0 Keyboard 0 Movement Arrows Keybinds 0 Fullscreen 1 Font 16/Terminus Map View 50x49 Zoom Use 0% Tactical HUD 1 Map Filters NONE Filters NONE Steam SD RUN: e2cdb730-1718-4c42-9f1e-45cc025f7b14